fUST/lending_fUST_20260223
["ID","MTS","AMOUNT","RATE_DAILY","PERIOD"]
[406369286,1771815678721,1108.21,0.00011216,30]
[406369287,1771815679107,1292.91,0.00011999,30]
[406369288,1771815679505,1477.62,0.00012781,30]
[406369289,1771815679853,1662.32,0.00013564,30]
[406369290,1771815691486,-433.68236182,0.00013698,2]
[406369291,1771815691523,-47.63527636,0.00013698,2]
[406369292,1771815697290,150.0,7.301e-05,30]
[406369293,1771815698191,157.84,8.083e-05,30]
[406369294,1771815698573,236.75,8.866e-05,30]
[406369295,1771815698959,315.67,9.648e-05,30]
[406369296,1771815699340,394.59,0.0001043,30]
[406369297,1771815699696,473.51,0.00011212,30]
[406369298,1771815700074,552.43,0.00011995,30]
[406369299,1771815700463,631.35,0.00012777,30]
[406369300,1771815700842,710.26,0.00013559,30]
[406369301,1771815714899,150.0,7.231e-05,30]
[406369302,1771815715259,150.0,8.006e-05,30]
[406369303,1771815715607,150.0,8.781e-05,30]
[406369304,1771815716462,150.0,9.556e-05,30]
[406369305,1771815716890,164.07,0.0001033,30]
[406369306,1771815717262,196.89,0.00011105,30]
[406369307,1771815717630,229.7,0.0001188,30]
[406369308,1771815718006,262.52,0.00012655,30]
[406369309,1771815718376,295.33,0.00013429,30]
[406369310,1771815720752,-181.31763818,0.00013698,2]
[406369311,1771815720774,-71.04708546,0.00013698,2]
[406369312,1771815728522,150.0,7.222e-05,30]
[406369313,1771815728926,150.0,7.996e-05,30]
[406369314,1771815729287,150.0,8.769e-05,30]
[406369315,1771815729650,150.0,9.543e-05,30]
[406369316,1771815730016,150.0,0.00010317,30]
[406369317,1771815749939,-31.31763818,0.00013698,2]
[406369318,1771815749963,-118.68236182,0.00013698,2]
[406369319,1771815795895,1570.11391691,0.000135,2]
[406369320,1771815943147,-493.45321369,0.00013699,2]
[406369322,1771816042087,-300.0,0.00013698,2]
[406369323,1771816042108,-150.0,0.00013698,2]
[406369324,1771816042129,-12.44763764,0.00013699,2]
[406369325,1771816042150,-500.0,0.00013699,2]
[406369326,1771816042170,-500.0,0.00013699,2]
[406369327,1771816042189,-201.38,0.000137,2]
[406369328,1771816042208,-1031.47672286,0.00013821,2]
[406369329,1771816042229,-164.59,0.00013831,2]
[406369330,1771816042249,-150.0,0.000142,2]
[406369331,1771816042270,-300.0,0.00014246,2]
[406369332,1771816042291,-300.0,0.00014246,2]
[406369333,1771816042310,-563.69048419,0.00014247,2]
[406369334,1771816042331,-867.81742456,0.00014247,2]
[406369335,1771816042350,-150.0,0.000148,2]
[406369336,1771816042369,-150.0,0.000153,2]
[406369337,1771816042389,-420.0,0.00015603,2]
[406369338,1771816042409,-177.0,0.00015698,2]
[406369339,1771816042428,-274.17596775,0.00015753,2]
[406369340,1771816042448,-250.52,0.000159,2]
[406369341,1771816042467,-326.58622622,0.0001709,2]
[406369342,1771816048102,-249.0907512,0.00013699,2]
[406369343,1771816079667,209.43,9.99e-05,60]
[406369344,1771816150095,-250.9092488,0.00013699,2]
[406369345,1771816150116,-625.0993017,0.00014247,2]
[406369346,1771816150136,-120.70331963,0.00017698,2]
[406369347,1771816151095,-83.29668037,0.00017698,2]
[406369348,1771816151115,-200.0,0.00019258,4]
[406369349,1771816151134,-231.0,0.00019698,2]
[406369350,1771816151152,-212.91412355,0.0002,2]
[406369351,1771816151176,-258.0,0.00021698,2]
[406369352,1771816151195,-150.0,0.00021918,2]
[406369353,1771816151215,-250.0,0.00022466,2]
[406369354,1771816151233,-350.0,0.00023014,2]
[406369355,1771816151252,-450.0,0.00023562,2]
[406369356,1771816151271,-285.0,0.00023698,2]
[406369357,1771816151290,-200.0,0.0002385,8]
[406369358,1771816151309,-808.455246,0.0002387,2]
[406369359,1771816151329,-550.0,0.0002411,2]
[406369360,1771816151348,-500.35278946,0.00024658,2]
[406369361,1771816151367,-3182.3728121,0.00024761,2]
[406369362,1771816151387,-209.15667034,0.00025698,2]
[406369363,1771816151406,-300.0,0.00026574,2]
[406369364,1771816151425,-270.344323,0.00027002,2]
[406369365,1771816151444,-187.81,0.00027394,60]
[406369366,1771816151463,-150.43,0.00027394,60]
[406369367,1771816151481,-150.42,0.00027394,60]
[406369368,1771816151500,-187.814666,0.00027494,60]
[406369369,1771816151519,-200.0,0.00027607,15]
[406369370,1771816151539,-270.344323,0.00028139,2]
[406369371,1771816151559,-164.22596696,0.00028401,4]
[406369372,1771816151578,-228.0,0.00028742,2]
[406369373,1771816151597,-270.344323,0.00029276,2]
[406369374,1771816151616,-270.344323,0.00030412,2]
[406369375,1771816151636,-200.0,0.00030529,24]
[406369376,1771816151655,-500.0,0.00031349,2]
[406369377,1771816151674,-5868.61832684,0.0003135,34]
[406369378,1771816151693,-270.344323,0.00031549,2]
[406369379,1771816151712,-273.61208059,0.00031722,4]
[406369380,1771816151732,-200.0,0.00032616,34]
[406369381,1771816151750,-270.344323,0.00032686,2]
[406369382,1771816151769,-383.31526415,0.00033,10]
[406369383,1771816151787,-200.0,0.00033868,36]
[406369384,1771816151806,-200.0,0.00034285,37]
[406369385,1771816151825,-200.0,0.00034703,37]
[406369386,1771816151844,-500.0,0.00035616,2]
[406369387,1771816151863,-168.55061072,0.00035789,2]
[406369388,1771816151883,-303.08770819,0.00035789,2]
[406369389,1771816151902,-161.81052541,0.00035789,2]
[406369390,1771816151921,-290.96768679,0.00035789,2]
[406369391,1771816151940,-199.94699046,0.00035789,2]
[406369392,1771816151959,-228.51084624,0.00035789,2]
[406369393,1771816151981,-357.04819726,0.00035789,2]
[406369394,1771816152007,-497.77341661,0.00035927,2]
[406369395,1771816152034,-200.0,0.00035955,39]
[406369396,1771816152059,-524.5193457,0.00035955,39]
[406369397,1771816152083,-500.0,0.00036026,15]
[406369398,1771816152103,-505.6711821,0.00036026,15]
[406369399,1771816152128,-500.0,0.00036026,15]
[406369400,1771816152150,-500.0,0.00036026,15]
[406369401,1771816152172,-500.0,0.00036026,15]
[406369402,1771816152195,-500.0,0.00036026,7]
[406369403,1771816152219,-500.0,0.00036026,15]
[406369404,1771816152241,-482.40474787,0.00036026,15]
[406369405,1771816168143,-17.59525213,0.00036026,15]
[406369406,1771816168169,-500.0,0.00036026,7]
[406369407,1771816168194,-595.94664748,0.00036026,15]
[406369408,1771816168220,-500.0,0.00036026,15]
[406369409,1771816168244,-268.12060514,0.00036026,7]
[406369432,1771816231840,-500.0,0.00031349,2]
[406369434,1771816231850,-182.91478927,0.00036025,15]
[406369436,1771816231859,-231.87939486,0.00036026,7]
[406369438,1771816231867,-482.35637759,0.00036026,15]
[406369440,1771816231876,-488.81133203,0.00036026,15]
[406369442,1771816231886,-500.0,0.00036026,15]
[406369444,1771816231895,-500.0,0.00036026,15]
[406369446,1771816231904,-466.497971,0.00036026,7]
[406369448,1771816231913,-500.0,0.00036026,15]
[406369450,1771816231923,-500.0,0.00036026,15]
[406369451,1771816231931,-500.0,0.00036026,15]
[406369453,1771816231940,-459.76853663,0.00036026,15]
[406369454,1771816231951,-218.49977455,0.00036026,7]
[406369455,1771816231960,-198.17857651,0.00036999,47]
[406369456,1771816231969,-4493.0,0.00038,120]
[406369457,1771816231979,-281.14,0.00038,60]
[406369458,1771816231990,-200.0,0.00038042,43]
[406369459,1771816232000,-263.2654942,0.00039788,2]
[406369460,1771816232010,-500.0,0.00040219,15]
[406369461,1771816232019,-500.0,0.00040219,16]
[406369462,1771816232028,-605.7645146,0.00040219,16]
[406369463,1771816232039,-500.0,0.00040219,2]
[406369464,1771816232048,-500.0,0.00040219,16]
[406369465,1771816232057,-788.2964162,0.0004022,2]
[406369466,1771816232066,-751.7499884,0.00040306,2]
[406369467,1771816232076,-200.0,0.00040964,50]
[406369468,1771816232087,-187.814666,0.00041192,60]
[406369469,1771816232096,-497.77341658,0.0004353,28]
[406369470,1771816232106,-296.12502132,0.00044249,14]
[406369471,1771816232115,-200.0,0.00044721,61]
[406369472,1771816232124,-259.1806199,0.000448,120]
[406369473,1771816232134,-171.0,0.00046,120]
[406369474,1771816232143,-442.25004273,0.00046131,14]
[406369475,1771816232152,-299.0,0.00046493,30]
[406369476,1771816232162,-2373.08304135,0.000468,57]
[406369477,1771816232171,-2373.08304132,0.000468,57]
[406369478,1771816232181,-2373.08304132,0.000468,57]
[406369479,1771816232191,-2373.08304132,0.00047899,61]
[406369480,1771816232201,-195.14143952,0.00047911,2]
[406369481,1771816232211,-303.96526755,0.00047933,17]
[406369482,1771816232221,-156.38468801,0.0004794,17]
[406369483,1771816232231,-500.0,0.00047998,2]
[406369484,1771816232240,-562.67742012,0.00047998,2]
[406369485,1771816232249,-464.43154342,0.00047999,15]
[406369486,1771816232259,-345.20724776,0.00047999,120]
[406369487,1771816232268,-500.0,0.00047999,2]
[406369488,1771816232277,-500.0,0.00047999,2]
[406369489,1771816232287,-168.27216865,0.00047999,120]
[406369490,1771816232296,-17452.20464751,0.00048,120]
[406369491,1771816232306,-168.79450154,0.00048,120]
[406369492,1771816232316,-151.0,0.00048,120]
[406369493,1771816232325,-160.927469,0.00048,120]
[406369494,1771816232335,-151.0,0.00048,120]
[406369495,1771816232344,-151.0,0.00048,120]
[406369496,1771816232354,-473.01320503,0.00048013,14]
[406369497,1771816232363,-9563.18,0.00048196,120]
[406369498,1771816232373,-160.97804285,0.00048197,5]
[406369499,1771816232383,-151.0,0.00048398,120]
[406369500,1771816232393,-1312.31076728,0.00048398,120]
[406369501,1771816232403,-402.0,0.00048447,31]
[406369502,1771816232412,-164.95371329,0.0004888,2]
[406369503,1771816232422,-5254.80511047,0.0004889,4]
[406369504,1771816232431,-500.0,0.00048988,2]
[406369505,1771816232440,-500.0,0.00048989,2]
[406369506,1771816232449,-514.385974,0.00048989,2]
[406369507,1771816232459,-24378.21246071,0.0004899,120]
[406369515,1771816238001,-328.51210506,0.00048889,120]
[406369516,1771816238014,-651.58763882,0.0004899,120]
[406369566,1771816246020,-209.40437684,0.00044435,2]
[406369567,1771816246030,-217.15233878,0.00044435,2]
[406369568,1771816246041,-38.32116959,0.00044435,2]
[406369569,1771816246180,-186.86580573,0.00044435,2]
[406369570,1771816246190,-233.51889341,0.00044435,2]
[406369571,1771816246199,-242.15909246,0.00044435,2]
[406369572,1771816246209,-251.11897888,0.00044435,2]
[406369573,1771816246219,-260.4103811,0.00044435,2]
[406369574,1771816246229,-270.0455652,0.00044435,2]
[406369575,1771816246238,-280.03725112,0.00044435,2]
[406369576,1771816246247,-290.39862941,0.00044435,2]
[406369577,1771816246257,-257.39540269,0.00044435,2]
[406369578,1771816276073,488.67713184,0.00013273,2]
[406369579,1771816276140,505.44836772,0.00013273,2]
[406369580,1771816276355,399.81435397,0.00013273,2]
[406369581,1771816281081,500.0,0.00013273,2]
[406369582,1771816332199,641.45669496,0.00013273,2]
[406369588,1771816390379,502.44799837,0.00013273,2]
[406369589,1771816390492,500.0,0.00013273,2]
[406369590,1771816447792,500.0,0.00013273,2]
[406369591,1771816455489,1622.03892688,0.000135,2]
[406369592,1771816736769,224.2769888,9.523e-05,2]
[406369597,1771816847387,5000.0,0.00013,2]
[406369600,1771817067186,3328.23035724,0.00013,2]
[406369601,1771817137117,-300.0,0.00013138,2]
[406369602,1771817137140,-150.0,0.00013206,2]
[406369603,1771817137162,-87.12974258,0.00013273,2]
[406369605,1771817230085,-415.76785084,0.00013273,2]
[406369606,1771817230106,-150.0,0.00013483,2]
[406369607,1771817230127,-411.22550742,0.00013595,2]
[406369608,1771817243084,-152.788331,0.00013595,2]
[406369610,1771817349091,-507.24459589,0.00013273,2]
[406369611,1771817349114,-130.8875464,0.00013595,2]
[406369612,1771817349136,-300.0,0.00013693,2]
[406369613,1771817349159,-500.0,0.00013694,2]
[406369614,1771817349179,-500.0,0.00013694,2]
[406369615,1771817349199,-500.0,0.00013694,2]
[406369616,1771817349220,-500.0,0.00013694,2]
[406369617,1771817349240,-500.0,0.00013694,2]
[406369618,1771817349259,-500.0,0.00013694,2]
[406369619,1771817349280,-500.0,0.00013694,2]
[406369620,1771817349393,-500.0,0.00013694,2]
[406369621,1771817349414,-338.08223082,0.00013694,2]
[406369622,1771817349432,-278.76338858,0.00013694,2]
[406369623,1771817349458,-500.0,0.00013694,2]
[406369624,1771817349477,-500.0,0.00013694,2]
[406369625,1771817349497,-500.0,0.00013694,2]
[406369626,1771817349517,-500.0,0.00013694,2]
[406369627,1771817349537,-500.0,0.00013694,2]
[406369628,1771817349558,-500.0,0.00013694,2]
[406369629,1771817349578,-500.0,0.00013694,2]
[406369630,1771817349597,-500.0,0.00013694,2]
[406369631,1771817349622,-500.0,0.00013694,2]
[406369632,1771817349642,-500.0,0.00013694,2]
[406369633,1771817349661,-500.0,0.00013694,2]
[406369634,1771817349681,-500.0,0.00013694,2]
[406369635,1771817349701,-500.0,0.00013694,2]
[406369636,1771817349721,-241.29474295,0.00013694,2]
[406369637,1771817349741,-500.0,0.00013694,2]
[406369638,1771817349764,-155.84653304,0.00013694,2]
[406369639,1771817349784,-500.0,0.00013694,2]
[406369640,1771817349805,-500.0,0.00013694,2]
[406369641,1771817349824,-500.0,0.00013694,2]
[406369642,1771817349844,-500.0,0.00013694,2]
[406369643,1771817349862,-500.0,0.00013694,2]
[406369644,1771817349881,-500.0,0.00013694,2]
[406369645,1771817349902,-518.76485326,0.00013694,2]
[406369646,1771817349923,-500.0,0.00013694,2]
[406369647,1771817349945,-500.0,0.00013694,2]
[406369648,1771817349973,-500.0,0.00013694,2]
[406369649,1771817349996,-500.0,0.00013694,2]
[406369650,1771817350017,-500.0,0.00013694,2]
[406369651,1771817350037,-500.0,0.00013694,2]
[406369652,1771817350057,-500.0,0.00013694,2]
[406369653,1771817350077,-500.0,0.00013694,2]
[406369654,1771817350097,-500.0,0.00013694,2]
[406369655,1771817350117,-500.0,0.00013694,2]
[406369656,1771817350137,-500.0,0.00013694,2]
[406369657,1771817350158,-500.0,0.00013694,2]
[406369658,1771817350179,-500.0,0.00013694,2]
[406369659,1771817350202,-500.0,0.00013694,2]
[406369660,1771817350223,-500.0,0.00013694,2]
[406369661,1771817350245,-500.0,0.00013694,2]
[406369662,1771817350267,-500.0,0.00013694,2]
[406369663,1771817350287,-500.0,0.00013694,2]
[406369664,1771817350308,-500.0,0.00013694,2]
[406369665,1771817350327,-500.0,0.00013694,2]
[406369666,1771817350350,-500.0,0.00013694,2]
[406369667,1771817350370,-500.0,0.00013694,2]
[406369668,1771817350391,-500.0,0.00013694,2]
[406369669,1771817350410,-500.0,0.00013694,2]
[406369670,1771817350431,-500.0,0.00013694,2]
[406369671,1771817350450,-500.0,0.00013694,2]
[406369672,1771817350470,-500.0,0.00013694,2]
[406369673,1771817350495,-500.0,0.00013694,2]
[406369674,1771817350516,-500.0,0.00013694,2]
[406369675,1771817350536,-500.0,0.00013694,2]
[406369676,1771817350559,-500.0,0.00013694,2]
[406369677,1771817350580,-500.0,0.00013694,2]
[406369678,1771817350600,-500.0,0.00013694,2]
[406369679,1771817350620,-300.0,0.00013694,2]
[406369680,1771817350639,-300.0,0.00013694,2]
[406369681,1771817350659,-29338.5530982,0.00013695,2]
[406369682,1771817350677,-300.0,0.00013695,2]
[406369683,1771817350695,-300.0,0.00013695,2]
[406369684,1771817350714,-300.0,0.00013695,2]
[406369685,1771817350733,-1200.0,0.00013695,2]
[406369686,1771817350752,-500.0,0.00013698,2]
[406369687,1771817350773,-500.0,0.00013698,2]
[406369688,1771817350794,-500.0,0.00013698,2]
[406369689,1771817350815,-500.0,0.00013698,2]
[406369690,1771817350834,-500.0,0.00013699,2]
[406369691,1771817350852,-500.0,0.00013699,2]
[406369692,1771817350871,-444.77337273,0.00013699,2]
[406369693,1771817350890,-581.0380599,0.00013699,2]
[406369694,1771817350909,-157.30345424,0.00013699,2]
[406369695,1771817350929,-500.0,0.00013699,2]
[406369696,1771817350947,-500.0,0.00013699,2]
[406369697,1771817350966,-295.48167519,0.00013699,2]
[406369698,1771817350985,-546.85870711,0.00013699,2]
[406369699,1771817351003,-158.0,0.00013699,2]
[406369700,1771817351022,-165.21,0.000137,2]
[406369701,1771817351041,-150.0,0.000137,2]
[406369702,1771817351060,-500.0,0.00013972,2]
[406369703,1771817351080,-500.0,0.00014245,2]
[406369704,1771817351100,-630.00666784,0.00014247,2]
[406369705,1771817351119,-500.0,0.00014519,2]
[406369706,1771817351138,-500.0,0.00014793,2]
[406369707,1771817351158,-420.0,0.00015006,2]
[406369708,1771817351177,-307.49272838,0.00015007,2]
[406369709,1771817351197,-420.0,0.00015008,2]
[406369710,1771817351217,-372.0,0.00015008,2]
[406369711,1771817351237,-420.0,0.00015008,2]
[406369712,1771817351256,-338.0,0.00015063,2]
[406369713,1771817351282,-1680.0,0.00015064,2]
[406369714,1771817351302,-348.99250635,0.00015066,2]
[406369715,1771817351337,-253.46593381,0.00015066,2]
[406369716,1771817351357,-500.0,0.00015067,2]
[406369717,1771817351378,-523.84605547,0.00015341,2]
[406369718,1771817351399,-177.0,0.00015483,2]
[406369719,1771817351419,-177.0,0.00017483,2]
[406369720,1771817351438,-151.55000802,0.0002,2]
[406369721,1771817351458,-24743.9665532,0.0002,2]
[406369722,1771817351477,-1379.56015804,0.0002,3]
[406369723,1771817351496,-57854.99987146,0.00024,7]
[406369724,1771817358072,-901.11988176,0.00024,7]
[406369725,1771817359104,-39682.06983404,0.00024,7]
[406369726,1771817359124,-694.90138482,0.00024389,2]
[406369727,1771817359144,-439.97428185,0.00024658,2]
[406369728,1771817359162,-686.51800119,0.00025,2]
[406369729,1771817359182,-480.67082508,0.00025428,2]
[406369730,1771817359200,-2316.32078278,0.00028,2]
[406369731,1771817359221,-523.97868628,0.00029999,16]
[406369732,1771817359240,-1431.40454322,0.0003,30]
[406369733,1771817367076,-10562.59545678,0.0003,30]
[406369734,1771817367096,-151.0,0.0003,7]
[406369735,1771817367116,-4151.33185338,0.0003,30]
[406369736,1771817367136,-2113.44,0.00032877,10]
[406369737,1771817367156,-4030.19,0.00032877,10]
[406369738,1771817367176,-694.90138482,0.00035182,2]
[406369739,1771817368496,155.767967,0.0002,2]
[406369740,1771817402968,300.0,0.00026574,2]
[406369741,1771817403783,420.0,0.00027903,2]
[406369742,1771817404658,423.62733802,0.00029298,2]
[406369770,1771817432014,-163.37266198,0.00029298,2]
[406369772,1771817432024,-823.0,0.00030763,2]
[406369774,1771817432034,-1152.0,0.00032301,3]
[406369776,1771817432044,-1613.0,0.00033916,3]
[406369779,1771817432053,-1427.0,0.00035612,3]
[406369781,1771817432063,-3162.0,0.00038,120]
[406369783,1771817432073,-253.02,0.00038,60]
[406369785,1771817432082,-463.504951,0.00038021,2]
[406369787,1771817432092,-151.0,0.00038356,120]
[406369789,1771817432101,-151.0,0.00038356,120]
[406369791,1771817432110,-151.0,0.00038356,120]
[406369793,1771817432120,-276.277796,0.00038356,120]
[406369795,1771817432129,-1817.16207145,0.00039999,2]
[406369796,1771817432138,-224.62,0.0004,30]
[406369799,1771817432147,-14406.46156103,0.0004321,120]
[406369800,1771817432156,-9164.71,0.00045479,120]
[406369802,1771817432165,-151.0,0.00045479,120]
[406369804,1771817432174,-407.57832138,0.000462,120]
[406369806,1771817432183,-1799.99168777,0.00047,120]
[406369808,1771817432192,-1884.74018594,0.0004776,4]
[406369810,1771817432202,-45281.23336448,0.0004786,120]
[406369858,1771817438073,-1984.65041174,0.0004786,120]
[406369859,1771817438182,-29401.11622378,0.0004786,120]
[406369860,1771817438193,-151.0,0.0004786,120]
[406369861,1771817438203,-3069.64,0.000479,14]
[406369862,1771817438212,-190.61260994,0.00047911,2]
[406369863,1771817438221,-159.0,0.00048,90]
[406369864,1771817438230,-574.26104062,0.00048112,2]
[406369865,1771817438240,-712.0,0.00048127,16]
[406369866,1771817438250,-511.58584547,0.000484,60]
[406369867,1771817438260,-3358.49,0.0004898,10]
[406369868,1771817438269,-164.298122,0.0004898,120]
[406369869,1771817438280,-500.0,0.00048988,2]
[406369870,1771817438290,-500.0,0.00048989,2]
[406369871,1771817438300,-301.052732,0.00048989,120]
[406369872,1771817438309,-500.0,0.00048989,120]
[406369873,1771817438318,-250.0,0.00048989,120]
[406369874,1771817438327,-500.0,0.00048989,120]
[406369875,1771817438338,-250.0,0.00048989,120]
[406369876,1771817438349,-500.0,0.00048989,120]
[406369877,1771817438362,-250.0,0.00048989,120]
[406369878,1771817438371,-500.0,0.00048989,120]
[406369879,1771817438382,-250.0,0.00048989,120]
[406369880,1771817438394,-500.0,0.00048989,120]
[406369881,1771817438404,-250.0,0.00048989,120]
[406369882,1771817438414,-500.0,0.00048989,120]
[406369883,1771817438424,-270.19259144,0.00048989,120]
[406369884,1771817438437,-500.0,0.00048989,120]
[406369885,1771817438447,-500.0,0.00048989,120]
[406369886,1771817438457,-542.01285351,0.00048989,120]
[406369887,1771817438467,-209.31081649,0.00048989,120]
[406369888,1771817438477,-2000.0,0.00048989,120]
[406369889,1771817438486,-954.6661991,0.00048989,120]
[406369890,1771817438496,-250.0,0.00048989,120]
[406369891,1771817438506,-250.0,0.00048989,120]
[406369892,1771817438516,-250.0,0.00048989,120]
[406369893,1771817438527,-250.0,0.00048989,120]
[406369894,1771817438537,-250.0,0.00048989,120]
[406369895,1771817438547,-250.0,0.00048989,120]
[406369896,1771817438561,-250.0,0.00048989,120]
[406369897,1771817438572,-250.0,0.00048989,120]
[406369898,1771817438581,-255.95645732,0.00048989,120]
[406369899,1771817438591,-151.0,0.00048989,120]
[406369900,1771817438602,-156.587,0.00048989,120]
[406369901,1771817438612,-162.380719,0.00048989,120]
[406369902,1771817438621,-168.3888056,0.00048989,120]
[406369903,1771817438632,-174.61919141,0.00048989,120]
[406369904,1771817438642,-181.08010149,0.00048989,120]
[406369905,1771817438651,-187.78006525,0.00048989,120]
[406369906,1771817438660,-194.72792766,0.00048989,120]
[406369907,1771817438670,-201.93286099,0.00048989,120]
[406369908,1771817438680,-209.40437684,0.00048989,120]
[406369909,1771817438689,-217.15233878,0.00048989,120]
[406369910,1771817438699,-225.18697532,0.00048989,120]
[406369911,1771817438710,-233.51889341,0.00048989,120]
[406369912,1771817438719,-242.15909246,0.00048989,120]
[406369913,1771817438729,-251.11897888,0.00048989,120]
[406369914,1771817438738,-260.4103811,0.00048989,120]
[406369915,1771817438748,-270.0455652,0.00048989,120]
[406369916,1771817438758,-280.03725112,0.00048989,120]
[406369917,1771817438767,-290.39862941,0.00048989,120]
[406369918,1771817438776,-301.1433787,0.00048989,120]
[406369919,1771817438786,-24970.20186447,0.0004899,120]
[406369920,1771817438796,-181.917633,0.0004899,120]
[406369921,1771817438805,-56865.70343298,0.0004899,2]
[406369922,1771817438816,-490.96907202,0.00049,120]
[406369923,1771817438826,-500.0,0.00049086,2]
[406369924,1771817438836,-402.0,0.00049087,31]
[406369925,1771817438845,-215.21,0.00049178,120]
[406369926,1771817438855,-1237.170294,0.000493,21]
[406369927,1771817438865,-200.0,0.00049313,82]
[406369928,1771817438875,-170.15,0.00049315,120]
[406369929,1771817438886,-287.41509139,0.00049315,120]
[406369930,1771817438895,-233.7588238,0.00049315,120]
[406369931,1771817438905,-153.784273,0.00049315,120]
[406369932,1771817438915,-378.32445846,0.00049315,120]
[406369933,1771817438925,-1000.0,0.00049315,120]
[406369934,1771817438935,-160.92642148,0.00049315,90]
[406369935,1771817438946,-281.81414112,0.00049315,120]
[406369936,1771817438956,-500.0,0.00049315,120]
[406369937,1771817438966,-500.0,0.00049315,120]
[406369938,1771817438976,-375.88482072,0.00049315,120]
[406369939,1771817438986,-342.74678436,0.00049315,120]
[406369940,1771817438996,-259.49927764,0.00049315,120]
[406369941,1771817439006,-265.05538797,0.00049315,120]
[406369942,1771817439016,-4066.89,0.00049315,120]
[406369943,1771817439026,-450.52492336,0.00049315,120]
[406369944,1771817439036,-443.21744821,0.00049315,120]
[406369945,1771817439045,-412.26585544,0.00049315,120]
[406369946,1771817439055,-500.0,0.00049315,120]
[406369947,1771817439064,-203.40602536,0.00049315,120]
[406369948,1771817439074,-344.21681965,0.00049315,120]
[406369949,1771817439083,-3221.72,0.00049315,20]
[406369950,1771817439093,-500.0,0.00049394,120]
[406369951,1771817439103,-157.74530866,0.00049394,120]
[406369952,1771817439112,-518.1523557,0.00049394,120]
[406369953,1771817439122,-500.0,0.00049394,120]
[406369954,1771817439132,-161.81438306,0.00049394,120]
[406369955,1771817439141,-542.04,0.00049394,120]
[406369956,1771817439151,-500.0,0.00049394,120]
[406369957,1771817439160,-168.01907088,0.00049394,120]
[406369958,1771817439170,-500.0,0.00049398,120]
[406369959,1771817439179,-500.0,0.00049398,120]
[406369960,1771817439189,-154.74481228,0.00049398,120]
[406369961,1771817439199,-500.0,0.00049398,120]
[406369962,1771817439208,-500.0,0.00049398,120]
[406369963,1771817439218,-500.0,0.00049398,120]
[406369964,1771817439227,-798.33,0.00049398,120]
[406369965,1771817439240,-4280.31361292,0.00049398,2]
[406369966,1771817439278,-1332.70614436,0.00049398,2]
[406369967,1771817439289,-1906.27805699,0.00049398,2]
[406369968,1771817439300,-1494.74219813,0.00049398,2]
[406369973,1771817440409,-436.20018376,0.00049398,2]
[406369974,1771817440463,-790.19877105,0.00049398,2]
[406369975,1771817440519,-989.86503233,0.00049398,2]
[406369992,1771817445670,-2196.46411189,0.00049398,2]
[406370000,1771817446145,-500.0,0.00049315,120]
[406370001,1771817446155,-1888.49586727,0.00049388,10]
[406370004,1771818343116,-300.0,0.00022515,2]
[406370005,1771818343136,-1841.62748164,0.00022516,120]
[406370006,1771818429087,-2266.7258359,0.00022516,120]
[406370007,1771818430083,-849.59703072,0.00022516,120]
[406370008,1771818444086,-1926.65565979,0.0002416,2]
[406370009,1771818451208,-3073.34434021,0.0002416,2]
[406370010,1771818451228,-1032.38606804,0.00024404,2]